Cogmind - Beta 16 @@@ ROGUE MODE // 2026.01.10 @ 20:47:31 Player: nichePenguin Result: Destroyed by D-53 Grenadier with Mini Grenade Launcher Performance ------------- Evolutions (0) 0 Regions Visited (2) 400 Robots Destroyed (38) 190 Value Destroyed (672) 672 Prototype IDs (0) 0 Alien Tech Used (0) 0 Bonus (0) 0 TOTAL SCORE: 1262 Bonus ------- None Cogmind --------- Core Integrity 0/250 Matter 290/300 Energy 99/125 System Corruption 0% Temperature Cool (0) Movement Rolling (95) Ox1 Location -10/Mines Parts ------- > --- POWER (1) -------- Light Ion Engine > --- PROPULSION (2) --- Light Treads Wheel > --- UTILITY (2) ------ ECM Suite > --- WEAPON (2) ------- Particle Gun Particle Gun > --- INVENTORY (5) ---- Medium Battery (150) Structural Scanner Improved Terrain Scanner Mining Laser Peak State ------------ > --- POWER ------------ Light Nuclear Core > --- PROPULSION ------- Light Treads Light Treads > --- UTILITY ---------- Medium Storage Unit Structural Scanner > --- WEAPON ----------- Medium Laser Particle Gun > --- INVENTORY -------- Ion Engine Heat Sink High-capacity Storage Unit Medium Battery Seismic Detector EM Pulse Gun Medium Laser Light Assault Rifle Light Assault Rifle Mining Laser [Rating: 11] Favorites ----------- Power Ion Engine Engine Ion Engine Power Core Light Nuclear Core Propulsion Light Treads Treads Light Treads Leg Aluminum Leg Wheel Wheel Utility Medium Storage Unit Device Heat Sink Storage Medium Storage Unit Weapon Particle Gun Energy Gun Particle Gun Special Weapon Mining Laser Build | -11 -10 -10 ------- Run | Yrd Mat Min Slots Evolved . | . . . Power . | . . . Propulsion . | . . . Utility . | . . . Weapon . | . . . Parts Attached 27 | 9 14 4 Power 4 | 1 2 1 Engine 3 | 1 1 1 Core 1 | . 1 . Reactor . | . . . Propulsion 7 | 4 2 1 Treads 2 | 2 . . Leg 4 | 2 2 . Wheel 1 | . . 1 Hover . | . . . Flight . | . . . Utility 9 | 2 5 2 Device 5 | 1 3 1 Storage 4 | 1 2 1 Processor . | . . . Hackware . | . . . Protection . | . . . Artifact . | . . . Weapon 7 | 2 5 . Energy Gun 6 | 2 4 . Energy Cannon . | . . . Ballistic Gun . | . . . Ballistic Cannon . | . . . Launcher . | . . . Special Weapon 1 | . 1 . Impact Weapon . | . . . Slashing Weapon . | . . . Piercing Weapon . | . . . Special Melee Weapon . | . . . Unidentified Prototypes . | . . . Parts Lost 2 | . 2 . Power 1 | . 1 . Propulsion . | . . . Utility 1 | . 1 . Weapon . | . . . Highest Loss Streak 2 | . 2 . To Critical Strikes . | . . . Average Backups 8 | 4 8 9 Power . | . . . Propulsion . | 2 . . Utility 3 | . 3 6 Weapon 3 | 1 3 3 Tool/Special . | . . . Unused Backups 17 | . 12 5 Power 1 | . 1 . Propulsion 4 | . 4 . Utility 4 | . . 4 Weapon 8 | . 7 1 Tool/Special . | . . . Average Slot Usage (%) 98 | . 98 99 Engine 8 | . 7 13 Core 5 | . 6 . Treads 18 | . 15 28 Leg 8 | . 11 . Device 14 | . 14 14 Storage 14 | . 14 14 Energy Gun 26 | . 26 28 Special Weapon 1 | . 1 . Peak Build Rating 11 | 7 11 10 Average Rating 9 | 5 9 9 On Entrance 5 | . 7 10 Avg Prop Armor Cover (%) 8 | . 8 . Naked Turns . | . . . Heaviest Build 51 | 12 51 23 Greatest Support 40 | 40 40 40 Greatest Overweight (x) 1 | . 1 1 Average Overweight (x) . | . . . Largest Inventory Capacity 20 | 8 20 10 Average Capacity 9 | 7 9 9 Most Carried 10 | 8 10 10 Average Carried 8 | 4 8 9 Final Capacity 10 | 8 10 5 Final Carried 10 | 8 10 4 Class Distribution -------------------- 75% | Mutant 24% | Scavenger-Mutant Dominant Class ---------------- Mutant | -10/Materials Mutant | -10/Mines Resources | -11 -10 -10 ----------- Run | Yrd Mat Min Matter Collected 749 | 290 225 234 Remotely . | . . . Salvage Created 1131 | 127 699 305 Parts 60 | 8 30 22 Haulers Intercepted 1 | . 1 . Recyclers Shooed 3 | 1 1 1 Parts Field Recycled . | . . . Retrieved Matter . | . . . Parts Self-Destructed . | . . . Prevented . | . . . Parts Restored . | . . . Kills | -11 -10 -10 ------- Run | Yrd Mat Min Combat Hostiles Destroyed 22 | . 13 9 Guns 21 | . 12 9 Classes Destroyed 8 | 2 6 . Worker 1 | . 1 . Tunneler 6 | 4 1 1 Hauler 1 | . 1 . Recycler 4 | 1 1 2 Operator 1 | . 1 . Watcher 3 | . 3 . Swarmer 12 | . 3 9 Grunt 10 | . 10 . Best Kill Streak 4 | 3 4 4 Combat Bots Only 4 | . 3 4 Max Kills in Single Turn 1 | 1 1 1 Gunslinging . | . . . Exploded . | . . . Melee . | . . . Uniques/NPCs Destroyed . | . . . Combat | -11 -10 -10 -------- Run | Yrd Mat Min Hostile Shots Fired 94 | . 66 28 Missed 22 | . 17 5 Hits 72 | . 49 23 Projectile 72 | . 49 23 AOE 2 | . . 2 Critical Strikes 1 | . . 1 Damage Taken 840 | . 543 297 Core 277 | . 153 124 Absorbed by Shields . | . . . Core Remaining (%) 100 | 100 . . Volleys Fired 104 | 12 69 23 Largest 2 | 2 2 2 Hottest 130 | 90 130 130 Shots Fired 204 | 24 134 46 Gun 200 | 24 130 46 Cannon . | . . . Launcher . | . . . Special 4 | . 4 . Kinetic . | . . . Thermal 204 | 24 134 46 Explosive . | . . . Electromagnetic . | . . . Robot Hit Streak 11 | 11 10 10 Robot Miss Streak 4 | 2 4 2 Penetration Max . | . . . Secondary Targets 1 | . . 1 Max Gunslinging Chain 1 | . . 1 Shots Hit Robots 120 | 18 77 25 Core Hits 52 | 6 34 12 Critical Kills . | . . . Critical Parts Destroyed . | . . . Critical Strikes 9 | 2 7 . Burn 9 | 2 7 . Melee Attacks . | . . . Impact . | . . . Slashing . | . . . Piercing . | . . . Sneak Attacks . | . . . Combat Hostiles . | . . . Follow-up Attacks . | . . . Damage Inflicted 1604 | 214 1008 382 Guns 1604 | 214 1008 382 Cannons . | . . . Explosions . | . . . Melee . | . . . Ramming . | . . . Kinetic . | . . . Thermal 1604 | 214 1008 382 Explosive . | . . . Electromagnetic . | . . . Impact . | . . . Slashing . | . . . Piercing . | . . . Highest Corruption . | . . . Average Corruption . | . . . Corruption Purged . | . . . Corruption Blocked . | . . . Overload Shots . | . . . Overflow Damage . | . . . Projectiles . | . . . Explosions . | . . . Melee . | . . . Knockbacks . | . . . Impact . | . . . Kinetic . | . . . Secondary . | . . . Self-Inflicted Damage . | . . . Shots . | . . . Rammed . | . . . Targets Rammed . | . . . Kicked . | . . . Crushed . | . . . Highest Temperature 563 | 148 260 563 Average Temperature 107 | 58 79 189 Received Heat Transfer 249 | . 249 . Effects 14 | . 2 12 Shutdowns 2 | . . 2 Interference 5 | . 2 3 Matter Decay 2 | . . 2 Damage (minor) 1 | . . 1 Damage (major) 3 | . . 3 Damage (core) 1 | . . 1 Siege Activations . | . . . Martial Activations . | . . . Shielding Activations . | . . . Robots Disrupted . | . . . Combat Hostiles . | . . . Robots Corrupted . | . . . Combat Hostiles . | . . . Parts Fried . | . . . Impact Corruptions . | . . . Robots Melted 1 | . 1 . Combat Hostiles 1 | . 1 . Parts Melted 10 | 1 9 . Heat Transferred 4818 | 718 3175 925 Parts Sabotaged . | . . . Parts Stolen . | . . . Parts Stripped . | . . . Power Chain Reactions . | . . . Alert | -11 -10 -10 ------- Run | Yrd Mat Min Maximum Alert Level . | . . . Low Security (%) 100 | 100 100 100 Level 1 . | . . . Level 2 . | . . . Level 3 . | . . . Level 4 . | . . . Level 5 . | . . . High Security . | . . . Max Security . | . . . Peak Influence 102 | 5 102 100 Initial 7 | . . 7 Average 29 | 1 28 41 Influence Increases 742 | 25 492 225 Destroy 0b10 Robot/C 440 | . 260 180 Destroy 0b10 Robot/NC 80 | 25 40 15 Destroy Leader 98 | . 68 30 Successful Hack 15 | . 15 . Disable Machine 60 | . 60 . Destroy Structure 4 | . 4 . Lose Combat Pursuer 45 | . 45 . Influence Decreases 742 | 25 472 245 Entered New Map 13 | . . 13 Time Decay 709 | 25 452 232 Lost Part 20 | . 20 . Squads Dispatched 3 | . 3 . Investigation 2 | . 2 . Extermination . | . . . Reinforcement 1 | . 1 . Assault . | . . . Garrison . | . . . Intercept . | . . . Searches Triggered . | . . . Construction Impeded . | . . . Haulers Reinforced . | . . . Active Scanning Responses . | . . . Cargo Convoy Interrupts . | . . . Stealth | -11 -10 -10 --------- Run | Yrd Mat Min Distress Signals 5 | . 3 2 Communications Jammed . | . . . Distress Signals . | . . . Times Spotted 40 | . 26 14 Peak Tracking Total 5 | . 5 4 Tactical Retreats 3 | . 2 1 ECM-based Alert Blocks 3 | . . 3 Traps | -11 -10 -10 ------- Run | Yrd Mat Min Traps Triggered 1 | . 1 . Indirectly . | . . . Trap Hack Attempts . | . . . Triggered . | . . . Disarmed . | . . . Reprogrammed . | . . . Reused . | . . . Traps Extracted . | . . . Installed . | . . . Triggered . | . . . Machines | -11 -10 -10 ---------- Run | Yrd Mat Min Machines Disabled 4 | . 4 . Max in Single Turn 1 | . 1 . Machines Repaired . | . . . Machines Dismantled . | . . . Machines Sabotaged . | . . . Overloaded Fab Kills . | . . . Hacking | -11 -10 -10 --------- Run | Yrd Mat Min Machines Accessed 5 | . 5 . Terminals 4 | . 4 . Fabricators . | . . . Repair Stations . | . . . Recycling Units 1 | . 1 . Scanalyzers . | . . . Garrison Access . | . . . Total Hacks 14 | . 14 . Successful 5 | . 5 . Failed 9 | . 9 . Catastrophic 2 | . 2 . Database Lockouts . | . . . Manual 9 | . 9 . Terminals 7 | . 7 . Fabricators . | . . . Repair Stations . | . . . Recycling Units 7 | . 7 . Scanalyzers . | . . . Garrison Access . | . . . Terminal Hacks 3 | . 3 . Part Schematic 1 | . 1 . Robot Analysis 1 | . 1 . Branch Access Points 1 | . 1 . Fabricator Hacks . | . . . Repair Station Hacks . | . . . Recycling Unit Hacks 2 | . 2 . Report Inventory 1 | . 1 . Retrieve Components 1 | . 1 . Scanalyzer . | . . . Garrison Access Hacks . | . . . Unauthorized Hacks . | . . . Terminals . | . . . Fabricators . | . . . Repair Stations . | . . . Recycling Units . | . . . Scanalyzers . | . . . Garrison Access . | . . . Data Cores Recovered . | . . . Used . | . . . Hacking Detections 5 | . 5 . Full Trace Events 2 | . 2 . Feedback Events . | . . . Feedback Blocked . | . . . Robot Schematics Acquired . | . . . Robots Built . | . . . Authchips . | . . . Time . | . . . Total Robot Build Rating . | . . . Part Schematics Acquired 1 | . 1 . Parts Built . | . . . Authchips . | . . . Time . | . . . Total Part Build Rating . | . . . Part Studies Acquired . | . . . Parts Repaired . | . . . Time . | . . . Parts Recycled . | . . . Recycled Matter . | . . . Retrieved Matter . | . . . Retrieved Components 9 | . 9 . Parts Scanalyzed . | . . . Part Schematics Acquired . | . . . Parts Damaged . | . . . Bothacking | -11 -10 -10 ------------ Run | Yrd Mat Min Used RIF Installer . | . . . Robots Hacked . | . . . Non-combat . | . . . Combat . | . . . Robot Hacks Applied . | . . . Relay Couplers Released . | . . . Fabnet Peak Effective % . | . . . Robots Rewired . | . . . Allies Hacked . | . . . Hacks Repelled . | . . . Allies | -11 -10 -10 -------- Run | Yrd Mat Min Total Allies . | . . . Largest Group . | . . . Highest-Rated Group . | . . . Highest-Rated Ally . | . . . Total Orders . | . . . Ally Attacks . | . . . Total Damage . | . . . Kills . | . . . Allies Corrupted . | . . . Allies Melted . | . . . Intel | -11 -10 -10 ------- Run | Yrd Mat Min Active Infowar (turns) 1366 | 61 840 465 Structural 432 | . 432 . Seismic 469 | 61 408 . ECM 465 | . . 465 Robot Analysis Total 1 | . 1 . Derelict Logs Recovered 1 | . . 1 Drone Launches . | . . . Drone Recoveries . | . . . Exploration | -11 -10 -10 ------------- Run | Yrd Mat Min Turns Passed 2438 | 193 1719 526 Spaces Moved 1282 | 122 912 248 Core 25 | 25 . . Treads 755 | 10 498 247 Legs 501 | 87 414 . Wheels 1 | . . 1 Hover . | . . . Flight . | . . . Fastest Speed 50 | 50 120 95 Average Speed 142 | 108 142 159 Slowest Speed 240 | 160 240 160 Overloaded Moves . | . . . Propulsion Burnouts . | . . . Robots Hopped . | . . . Potential Cave-ins . | . . . Cave-ins Triggered . | . . . Exploration Rate (%) 49 | 5 86 56 Regions Visited 2 Branch Regions 1 Pre-discovered Areas . | . . . Known Exits Taken 1 | . 1 . Unknown Exits Taken 1 | 1 . . Scrap Searched . | . . . Spaces Dug 4 | . 4 . Terrain Destroyed 4 | . 4 . Melee . | . . . Projectile 4 | . 4 . AOE . | . . . Terrain Rammed . | . . . Walls Destroyed . | . . . Machines Disabled . | . . . Actions | -11 -10 -10 --------- Run | Yrd Mat Min Total 1694 | 157 1203 334 Wait 193 | . 145 48 Move 1280 | 121 911 248 Hop . | . . . Pick Up 50 | 15 31 4 Fast Attach . | . . . Attach 15 | 7 7 1 Detach 1 | . 1 . Swap 18 | 2 12 4 Drop 33 | . 27 6 Fire 104 | 12 69 23 Melee . | . . . Ram . | . . . Kick . | . . . Crush . | . . . Escape Stasis . | . . . Rewire . | . . . Trap . | . . . Miscellaneous . | . . . Route ------- -11/Scrapyard -10/Materials (discovered 6 exits: [*Mat x3] / *Min x2 / [*Sub]) -10/Mines History --------- Turn | Location | Event 5 | -11/Scrapyard | Discovered new exit (range 15) 194 | -11/Scrapyard | Entered Materials 309 | -10/Materials | Build established: Mutant 425 | -10/Materials | Discovered new exit (range 14) 667 | -10/Materials | Discovered new exit (range 15) 766 | -10/Materials | Build established: Scavenger-Mutant 1167 | -10/Materials | Build established: Mutant 1206 | -10/Materials | Core integrity fell below 50% 1315 | -10/Materials | Discovered new exit (range 10) 1387 | -10/Materials | Discovered new exit (range 4) 1636 | -10/Materials | Discovered new exit (range 13) 1897 | -10/Materials | Identified exit to Mines 1913 | -10/Materials | Entered Mines 2192 | -10/Mines | Core integrity fell below 20% 2394 | -10/Mines | Assembled infested the area 2439 | -10/Mines | Destroyed by D-53 Grenadier with Mini Grenade Launcher Last Messages --------------- 02202_ Overheating: Matter decay (-36). 02217_ R-06 Scavenger destroyed. 02239_ Dropped Heat Sink. 02240_ Acquired Sml. Storage Unit. 02244_ Acquired 84 matter. 02260_ Acquired 43 matter. 02268_ Dropped Ion Engine. 02268_ Dropped Sml. Storage Unit. 02269_ Acquired Lgt. Ion Engine. 02285_ Acquired 10 matter. 02296_ Acquired Wheel. 02393_ T-07 Excavator is excavating. 02394_ ALERT: Infestation in the mines, dispatching Demolisher response squad. 02397_ T-07 Excavator is excavating. 02438_ C-45 Heavy ARC bursts open, deploying its payload. 02438_ D-53 Grenadier unfolds itself. 02438_ Dropped Med. Storage Unit. 02438_ Dropped Lgt. Treads. Map ----- +----------------------------------------------------+ | #### #?????# ##??????????????????? | | ##??# #?????? ##?????????????????? | | ##???# #?????? #?????????????????? | | ######## #??????? #?????????????????? | | ##??# #???????# #?????????????????? | | # #???# #####??????## #??????????????????? | | ## ##### ############ #??????????????????? | | ?## ##?????????????????? | | ?## #### #?????????????????? | | ## #### ############ #?????????????????? | | #?????????##% ##?????????????????? | | #####?????????# #######????????????? | | ##?????????????# #????????????? | | ##??????????????## #????????????? | | # #????????????????## ##### #????????????? | | # ##?????????????????# #????? #????????????? | | # ##??????????????????# ##???????????????????? | | # #???????????????????# #????????????????????? | | # #???????????????????# #????????????????????? | | # #???????????????????# #????????????????????? | | ! #???????????????????# #????????????????????? | | *###???????????????????# #????????????????????? | | !#???####??????????????# #????????????????????? | | #??## ##????????????## ##???????????????????? | | [####* #???????????## #???????????????????? | | =%==!=[ #???????????# !@ #???????????????????? | | #####| ##???????????# [!! #???????????????????? | | #??## !##????????????##=![ #???????????????????? | | #### *#??????????????# dd #???????????????????? | | ! #??????????????##% #???????????????????? | | ! ##?????????????? ##???????????????????? | | = ##?????????????? #####????????????????????? | | * =##??????????????"??????????????????????????? | | #*[##?????????????""???????????????????????????? | | # #????????????? ????????????????????????????? | | # #???????????????????????????????????????????? | | # #####???????????????????????????????????????? | | # # ##??????????????????????????????????????? | | #??????????????????????????????????????? | | #??????????????????????????????????????? | | ##?????????????????????????????????????? | | ## #?????????????????????????????????????? | | ##### #?????????????????????????????????????? | | ????# ##?????????????????????????????????????? | | ##### ###??????????????????????????????????????? | | ## #????????????????????????????????????????? | | ## ######???????????????????????????????????? | | ## ## #???????????????????????????????????? | | ## ####### #???????????????????????????????????? | | #?# #???????????????????????????????????? | +----------------------------------------------------+ Best States ------------- Heat Dissipation 35 Energy Generation 14 Energy Capacity 250 Matter Stores 300 Matter Capacity 300 Sight Range 16 Terrain Scan Density 10 ECM Strength 1 Evasion (%) 55 Recoil Reduction 2 Item Schematics ----------------- Sensor Array | -10/Materials | Hacked Robot Schematics ------------------ None Fabricated ------------ Nothing Repaired ---------- Nothing Studied --------- None Alien Tech Used ----------------- None Achievements -------------- None Challenges ------------ None Game ------ Seed HelicalMagneticDoublenader Manual? 0 Play Time 00:33:19 Cumulative 24.9 hours Start 2026.01.10 @ 20:16:20 End 2026.01.10 @ 20:47:31 Sessions 1 Manual Loads 0 Difficulty Rogue Special Mode None Game No. 24 Rogue 21 Adventurer 3 Explorer 0 Win Type - Total 0 Types 0/0/0/0/0/0/0/0/0/0 Lore% 10 Gallery% 30 Achievement% 19 Wizard Run 0 Options --------- Layout 1 ASCII 0 Keyboard 1 Movement Numpad Keybinds 0 Fullscreen 1 Font 48/Smallcaps Map View 50x35 Zoom Use 0% Tactical HUD 1 Map Filters NONE Filters NONE Steam 1 RUN: bc48fc35-08cd-4a57-9405-d1c0a557ec67